fUST/lending_fUST_20240115
["ID","MTS","AMOUNT","RATE_DAILY","PERIOD"]
[311661266,1705290649824,-500.0,0.00030986,2]
[311661267,1705290649834,-965.23762414,0.00030986,2]
[311661268,1705290649843,-500.0,0.00030986,2]
[311661269,1705290649853,-500.0,0.00030986,2]
[311661270,1705290649862,-965.23762414,0.00030986,2]
[311661271,1705290649870,-500.0,0.00030986,2]
[311661272,1705290649880,-500.0,0.00030986,2]
[311661273,1705290649888,-500.0,0.00030986,2]
[311661274,1705290649898,-965.23762414,0.00030986,2]
[311661275,1705290649907,-965.23762414,0.00030986,2]
[311661276,1705290649916,-370.32074788,0.00030986,2]
[311661277,1705290649925,-340.5149864,0.00030986,2]
[311661278,1705290649934,-500.0,0.00030986,2]
[311661279,1705290649943,-965.23762414,0.00030986,2]
[311661280,1705290649952,-965.23762414,0.00030986,2]
[311661281,1705290649961,-965.23762414,0.00030986,2]
[311661282,1705290649970,-500.0,0.00030986,2]
[311661283,1705290649979,-965.23762414,0.00030986,2]
[311661284,1705290649988,-500.0,0.00030986,2]
[311661285,1705290649998,-965.23762414,0.00030986,2]
[311661286,1705290650007,-500.0,0.00030986,2]
[311661287,1705290650016,-316.73954574,0.00030986,2]
[311661288,1705290650025,-500.0,0.00030986,2]
[311661289,1705290650034,-965.23762414,0.00030986,2]
[311661290,1705290650043,-500.0,0.00030986,2]
[311661291,1705290650052,-965.23762414,0.00030986,2]
[311661292,1705290650061,-500.0,0.00030986,2]
[311661293,1705290650071,-391.17420253,0.00030986,2]
[311661294,1705290650079,-965.23762414,0.00030986,2]
[311661295,1705290650089,-965.23762414,0.00030986,2]
[311661296,1705290650161,-500.0,0.00030986,2]
[311661297,1705290650178,-965.23762414,0.00030986,2]
[311661298,1705290650187,-500.0,0.00030986,2]
[311661299,1705290650196,-965.23762414,0.00030986,2]
[311661300,1705290650205,-500.0,0.00030986,2]
[311661301,1705290650214,-965.23762414,0.00030986,2]
[311661302,1705290650223,-965.23762414,0.00030986,2]
[311661303,1705290650232,-495.94146056,0.00030986,2]
[311661304,1705290650241,-965.23762414,0.00030986,2]
[311661305,1705290650250,-500.0,0.00030986,2]
[311661306,1705290650259,-965.23762414,0.00030986,2]
[311661307,1705290650269,-965.23762414,0.00030986,2]
[311661308,1705290650278,-500.0,0.00030986,2]
[311661309,1705290650287,-500.0,0.00030986,2]
[311661310,1705290650296,-965.23762414,0.00030986,2]
[311661311,1705290650305,-965.23762414,0.00030986,2]
[311661312,1705290650314,-500.0,0.00030986,2]
[311661313,1705290650323,-500.0,0.00030986,2]
[311661314,1705290650332,-965.23762414,0.00030986,2]
[311661315,1705290650341,-965.23762414,0.00030986,2]
[311661316,1705290650350,-965.23762414,0.00030986,2]
[311661317,1705290650359,-965.23762414,0.00030986,2]
[311661318,1705290650368,-965.23762414,0.00030986,2]
[311661319,1705290650378,-151.0,0.00030986,2]
[311661320,1705290650387,-618.7301581,0.00030987,4]
[311661321,1705290650396,-497.83570284,0.00030987,4]
[311661322,1705290650405,-96919.82410744,0.00031,4]
[311661323,1705290650413,-5000.0,0.00031,2]
[311661324,1705290650422,-321.551279,0.00031,2]
[311661325,1705290650431,-321.551279,0.00031,2]
[311661326,1705290650441,-1326.406855,0.00031,2]
[311661327,1705290650450,-1326.406855,0.00031,2]
[311661328,1705290650459,-151.0,0.00031097,2]
[311661329,1705290650468,-150.0,0.000311,2]
[311661330,1705290650478,-153.890699,0.00031155,7]
[311661331,1705290650488,-152.31739518,0.00031184,7]
[311661332,1705290650497,-1466.46,0.00031229,2]
[311661333,1705290650506,-500.0,0.00031229,2]
[311661334,1705290650515,-500.0,0.00031229,2]
[311661335,1705290650525,-857.62,0.00031229,2]
[311661336,1705290650534,-512.97,0.00031229,2]
[311661337,1705290650543,-8937.2,0.00031229,2]
[311661338,1705290650552,-3300.14,0.00031229,2]
[311661339,1705290650562,-15225.0,0.00031229,2]
[311661340,1705290650571,-1221.63,0.00031229,2]
[311661341,1705290650580,-845.79,0.0003123,2]
[311661342,1705290650625,-4603.41,0.0003123,2]
[311661343,1705290650634,-4682.2,0.0003123,2]
[311661344,1705290650644,-500.0,0.0003123,2]
[311661345,1705290650653,-2506.5,0.0003123,2]
[311661346,1705290650663,-600.0,0.00031231,2]
[311661347,1705290650673,-1014.27,0.00031231,2]
[311661348,1705290650683,-1813.57,0.00031231,2]
[311661349,1705290650692,-506.45621317,0.00031231,2]
[311661350,1705290650701,-500.0,0.00031232,2]
[311661351,1705290650711,-500.0,0.00031232,2]
[311661352,1705290650720,-500.0,0.00031232,2]
[311661353,1705290650729,-500.0,0.00031232,2]
[311661354,1705290650739,-500.0,0.00031232,2]
[311661355,1705290650748,-657.97,0.00031232,2]
[311661356,1705290650757,-447.36995328,0.00031232,2]
[311661357,1705290650767,-500.0,0.00031232,2]
[311661358,1705290650776,-996.59,0.00031232,2]
[311661359,1705290650786,-686.93,0.00031232,2]
[311661360,1705290650795,-500.0,0.00031232,2]
[311661361,1705290650803,-737.22,0.00031232,2]
[311661362,1705290650813,-826.87,0.00031232,2]
[311661363,1705290650822,-500.0,0.00031232,2]
[311661364,1705290650833,-885.55,0.00031232,2]
[311661365,1705290650843,-1762.69,0.00031232,2]
[311661366,1705290650852,-500.0,0.00031232,2]
[311661367,1705290650862,-641.5,0.00031232,2]
[311661368,1705290650871,-1894.45,0.00031232,2]
[311661369,1705290650881,-583.54,0.00031232,2]
[311661370,1705290650890,-1062.55,0.00031232,2]
[311661371,1705290650899,-151.0,0.00031232,2]
[311661372,1705290650909,-154.9562086,0.00031459,7]
[311661373,1705290650918,-150.59929713,0.00031502,7]
[311661374,1705290650928,-1466.46,0.00031503,2]
[311661375,1705290650937,-419.93758798,0.00031503,2]
[311661376,1705290650946,-500.0,0.00031503,2]
[311661377,1705290650955,-857.62,0.00031503,2]
[311661378,1705290650970,-512.97,0.00031503,2]
[311661379,1705290650985,-8937.2,0.00031503,2]
[311661380,1705290650999,-3300.14,0.00031503,2]
[311661381,1705290651011,-15225.0,0.00031503,2]
[311661382,1705290651023,-1221.63,0.00031503,2]
[311661383,1705290651036,-845.79,0.00031504,2]
[311661384,1705290651048,-4603.41,0.00031504,2]
[311661385,1705290651062,-4682.2,0.00031504,2]
[311661386,1705290651075,-500.0,0.00031504,2]
[311661387,1705290651088,-2506.5,0.00031504,2]
[311661388,1705290651099,-600.0,0.00031505,2]
[311661389,1705290651113,-1014.27,0.00031505,2]
[311661390,1705290651125,-1813.57,0.00031505,2]
[311661391,1705290651138,-500.0,0.00031506,2]
[311661392,1705290651151,-500.0,0.00031506,2]
[311661393,1705290651163,-500.0,0.00031506,2]
[311661394,1705290651177,-500.0,0.00031506,2]
[311661395,1705290651188,-500.0,0.00031506,2]
[311661396,1705290651198,-657.97,0.00031506,2]
[311661397,1705290651214,-500.0,0.00031506,2]
[311661398,1705290651226,-996.59,0.00031506,2]
[311661399,1705290651239,-686.93,0.00031506,2]
[311661400,1705290651251,-500.0,0.00031506,2]
[311661401,1705290651263,-737.22,0.00031506,2]
[311661402,1705290651275,-826.87,0.00031506,2]
[311661403,1705290651290,-500.0,0.00031506,2]
[311661404,1705290651303,-885.55,0.00031506,2]
[311661405,1705290651317,-1762.69,0.00031506,2]
[311661406,1705290651330,-500.0,0.00031506,2]
[311661407,1705290651341,-641.5,0.00031506,2]
[311661408,1705290651352,-1894.45,0.00031506,2]
[311661409,1705290651362,-583.54,0.00031506,2]
[311661410,1705290651373,-1062.55,0.00031506,2]
[311661411,1705290651387,-155.0,0.00031507,2]
[311661412,1705290651398,-153.890699,0.00031771,7]
[311661413,1705290651410,-1466.46,0.00031777,2]
[311661414,1705290651423,-500.0,0.00031777,2]
[311661415,1705290651434,-857.62,0.00031777,2]
[311661416,1705290651445,-512.97,0.00031777,2]
[311661417,1705290651456,-8937.2,0.00031777,2]
[311661418,1705290651467,-3300.14,0.00031777,2]
[311661419,1705290651478,-15225.0,0.00031777,2]
[311661420,1705290651489,-1221.63,0.00031777,2]
[311661421,1705290651501,-845.79,0.00031778,2]
[311661422,1705290651512,-4603.41,0.00031778,2]
[311661423,1705290651524,-4682.2,0.00031778,2]
[311661424,1705290651534,-500.0,0.00031778,2]
[311661425,1705290651546,-2506.5,0.00031778,2]
[311661426,1705290651557,-600.0,0.00031779,2]
[311661427,1705290651569,-1014.27,0.00031779,2]
[311661428,1705290651580,-1813.57,0.00031779,2]
[311661429,1705290651592,-500.0,0.0003178,2]
[311661430,1705290651604,-571.87697999,0.0003178,2]
[311661431,1705290651615,-500.0,0.0003178,2]
[311661432,1705290651626,-500.0,0.0003178,2]
[311661433,1705290651638,-321.551279,0.0003178,2]
[311661434,1705290651649,-321.551279,0.0003178,2]
[311661435,1705290651661,-500.0,0.0003178,2]
[311661436,1705290651672,-657.97,0.0003178,2]
[311661437,1705290651684,-500.0,0.0003178,2]
[311661438,1705290651694,-996.59,0.0003178,2]
[311661439,1705290651705,-686.93,0.0003178,2]
[311661440,1705290651716,-500.0,0.0003178,2]
[311661441,1705290651727,-737.22,0.0003178,2]
[311661442,1705290651738,-826.87,0.0003178,2]
[311661443,1705290651749,-500.0,0.0003178,2]
[311661444,1705290651761,-885.55,0.0003178,2]
[311661445,1705290651773,-1762.69,0.0003178,2]
[311661446,1705290651784,-500.0,0.0003178,2]
[311661447,1705290651793,-641.5,0.0003178,2]
[311661448,1705290651803,-1894.45,0.0003178,2]
[311661449,1705290651812,-583.54,0.0003178,2]
[311661450,1705290651821,-1326.406855,0.0003178,2]
[311661451,1705290651830,-1326.406855,0.0003178,2]
[311661452,1705290651840,-1062.55,0.0003178,2]
[311661453,1705290651849,-200.03470348,0.00031819,4]
[311661454,1705290651859,-275.15,0.0003187,30]
[311661455,1705290651868,-150.5,0.0003188,30]
[311661456,1705290651878,-150.0,0.00031888,2]
[311661457,1705290651887,-150.5,0.0003189,30]
[311661458,1705290651896,-153.890699,0.00031954,7]
[311661459,1705290652017,-154.9562086,0.00031991,7]
[311661460,1705290652028,-1384.26789293,0.00031999,3]
[311661461,1705290652037,-28392.49393797,0.00032,15]
[311661462,1705290769017,1447.89620837,0.00021,2]
[311661463,1705290769042,5628.10379163,0.00021,2]
[311661499,1705291832579,-155.0,0.00027394,4]
[311661500,1705291832588,-525.57379999,0.00027396,2]
[311661544,1705291838724,-2600.45348392,0.00027396,2]
[311661546,1705291838734,-505.30062335,0.00027397,2]
[311661549,1705291838743,-500.0,0.00027397,2]
[311661552,1705291838753,-500.0,0.00027397,2]
[311661553,1705291838762,-500.0,0.00027397,2]
[311661556,1705291838771,-496.6288057,0.00027397,2]
[311661558,1705291838781,-510.0218457,0.00027397,2]
[311661559,1705291838791,-589.74410009,0.00027665,2]
[311661560,1705291838801,-500.0,0.00027666,2]
[311661561,1705291838811,-500.0,0.00027667,2]
[311661562,1705291838822,-500.0,0.00027667,2]
[311661563,1705291838831,-502.37082528,0.00027667,2]
[311661564,1705291838841,-500.23364505,0.00027667,2]
[311661565,1705291838850,-500.0,0.00027667,2]
[311661566,1705291838859,-500.25080538,0.00027667,2]
[311661567,1705291838869,-500.0,0.00027667,2]
[311661568,1705291838878,-500.0,0.00027667,2]
[311661569,1705291838888,-500.0,0.00027667,2]
[311661570,1705291838898,-500.0,0.00027667,2]
[311661571,1705291838908,-500.0,0.00027667,2]
[311661572,1705291838918,-500.0,0.00027667,2]
[311661573,1705291838928,-500.0,0.00027667,2]
[311661574,1705291838937,-500.0,0.00027667,2]
[311661575,1705291838947,-500.0,0.00027667,2]
[311661576,1705291838956,-500.0,0.00027667,2]
[311661577,1705291838966,-244.35923208,0.00027667,2]
[311661578,1705291838976,-500.0,0.00027667,2]
[311661579,1705291838985,-500.0,0.00027667,2]
[311661580,1705291838994,-500.0,0.00027667,2]
[311661581,1705291839003,-500.0,0.00027667,2]
[311661582,1705291839012,-500.0,0.00027667,2]
[311661583,1705291839021,-500.0,0.00027667,2]
[311661584,1705291839031,-500.0,0.00027667,2]
[311661585,1705291839041,-500.0,0.00027667,2]
[311661586,1705291839051,-500.0,0.00027667,2]
[311661587,1705291839061,-509.92698359,0.00027667,2]
[311661588,1705291839071,-500.0,0.00027667,2]
[311661589,1705291839080,-500.0,0.00027667,2]
[311661590,1705291839091,-500.0,0.00027667,2]
[311661591,1705291839101,-500.0,0.00027667,2]
[311661592,1705291839110,-500.0,0.00027667,2]
[311661593,1705291839120,-501.06750293,0.00027667,2]
[311661594,1705291839130,-500.0,0.00027667,2]
[311661595,1705291839140,-500.0,0.00027667,2]
[311661596,1705291839151,-503.55703203,0.00027667,2]
[311661597,1705291839163,-529.35214172,0.00027667,2]
[311661598,1705291839174,-500.0,0.00027667,2]
[311661599,1705291839184,-507.71569125,0.00027667,2]
[311661600,1705291839194,-500.90253928,0.00027667,2]
[311661601,1705291839203,-500.0,0.00027667,2]
[311661602,1705291839213,-501.11049196,0.00027667,2]
[311661603,1705291839223,-501.40100245,0.00027667,2]
[311661604,1705291839233,-500.0,0.00027667,2]
[311661605,1705291839242,-508.45398065,0.00027667,2]
[311661606,1705291839251,-500.0,0.00027667,2]
[311661607,1705291839260,-500.0,0.00027667,2]
[311661608,1705291839268,-500.0,0.00027667,2]
[311661609,1705291839278,-505.15095378,0.00027667,2]
[311661610,1705291839287,-500.0,0.00027667,2]
[311661611,1705291839296,-1031.97,0.00027667,2]
[311661612,1705291839307,-500.0,0.00027667,2]
[311661613,1705291839316,-500.23314819,0.00027667,2]
[311661614,1705291839326,-500.0,0.00027667,2]
[311661615,1705291839336,-500.0,0.00027667,2]
[311661616,1705291839345,-500.0,0.00027667,2]
[311661617,1705291839353,-501.03191703,0.0002767,2]
[311661618,1705291839363,-500.0,0.00027671,2]
[311661619,1705291839373,-500.0,0.00027671,2]
[311661620,1705291839384,-688.3625771,0.000277,2]
[311661621,1705291839394,-500.0,0.00027941,2]
[311661622,1705291839403,-500.0,0.00027941,2]
[311661623,1705291839412,-500.0,0.00027941,2]
[311661624,1705291839422,-500.0,0.00027941,2]
[311661625,1705291839434,-500.0,0.00027941,2]
[311661626,1705291839443,-500.0,0.00027941,2]
[311661627,1705291839453,-500.0,0.00027941,2]
[311661628,1705291839462,-500.0,0.00027941,2]
[311661629,1705291839471,-500.0,0.00027941,2]
[311661630,1705291839481,-500.0,0.00027941,2]
[311661631,1705291839491,-500.0,0.00027941,2]
[311661632,1705291839501,-500.0,0.00027941,2]
[311661633,1705291839512,-500.0,0.00027941,2]
[311661634,1705291839522,-500.0,0.00027941,2]
[311661635,1705291839531,-500.0,0.00027941,2]
[311661636,1705291839542,-500.0,0.00027941,2]
[311661637,1705291839551,-500.0,0.00027941,2]
[311661638,1705291839561,-500.0,0.00027941,2]
[311661639,1705291839570,-500.0,0.00027941,2]
[311661640,1705291839580,-500.0,0.00027941,2]
[311661641,1705291839590,-500.0,0.00027941,2]
[311661642,1705291839599,-501.54072563,0.00027941,2]
[311661643,1705291839610,-273.24057728,0.00027941,2]
[311661644,1705291839619,-500.0,0.00027941,2]
[311661645,1705291839628,-545.74874845,0.00027941,2]
[311661646,1705291839637,-500.0,0.00027941,2]
[311661647,1705291839646,-508.60469395,0.00027941,2]
[311661648,1705291839655,-500.0,0.00027941,2]
[311661649,1705291839665,-1031.97,0.00027941,2]
[311661650,1705291839674,-500.0,0.00027941,2]
[311661651,1705291839683,-500.0,0.00027945,2]
[311661652,1705291839692,-500.0,0.00027945,2]
[311661653,1705291839701,-500.0,0.00027998,2]
[311661654,1705291839804,-500.0,0.00027998,2]
[311661655,1705291839817,-1650.07,0.00027998,2]
[311661656,1705291839826,-7612.5,0.00027998,2]
[311661657,1705291839837,-500.0,0.00027999,2]
[311661658,1705291839849,-2301.71,0.00027999,2]
[311661659,1705291839858,-500.0,0.00027999,2]
[311661660,1705291839868,-1253.25,0.00027999,2]
[311661661,1705291839877,-500.0,0.00027999,2]
[311661662,1705291839887,-500.0,0.00027999,2]
[311661663,1705291839897,-4112.7341507,0.00028,2]
[311661664,1705291839908,-4608.7,0.00028213,2]
[311661665,1705291839918,-1121.77,0.00028213,2]
[311661666,1705291839928,-501.87572011,0.00028214,2]
[311661667,1705291839937,-500.0,0.00028214,2]
[311661668,1705291839947,-500.0,0.00028214,2]
[311661669,1705291839956,-500.0,0.00028214,2]
[311661670,1705291839965,-420.73170956,0.00028214,2]
[311661671,1705291839974,-500.0,0.00028214,2]
[311661672,1705291839984,-500.0,0.00028214,2]
[311661673,1705291839994,-500.0,0.00028214,2]
[311661674,1705291840003,-349.43807217,0.00028214,2]
[311661675,1705291840012,-500.0,0.00028214,2]
[311661676,1705291840021,-500.0,0.00028214,2]
[311661677,1705291840031,-3494.03,0.00028214,2]
[311661678,1705291840041,-503.13889046,0.00028214,2]
[311661679,1705291840050,-500.0,0.00028214,2]
[311661680,1705291840059,-500.0,0.00028214,2]
[311661681,1705291840069,-500.0,0.00028214,2]
[311661682,1705291840078,-500.0,0.00028214,2]
[311661683,1705291840087,-500.0,0.00028214,2]
[311661684,1705291840096,-507.14,0.00028214,2]
[311661685,1705291840105,-906.79,0.00028214,2]
[311661686,1705291840114,-500.0,0.00028214,2]
[311661687,1705291840123,-500.0,0.00028214,2]
[311661688,1705291840132,-500.0,0.00028214,2]
[311661689,1705291840141,-610.81,0.00028214,2]
[311661690,1705291840150,-500.0,0.00028215,2]
[311661691,1705291840159,-500.0,0.00028215,2]
[311661692,1705291840167,-500.0,0.00028215,2]
[311661693,1705291840177,-500.0,0.00028215,2]
[311661694,1705291840186,-500.0,0.00028215,2]
[311661695,1705291840195,-500.0,0.00028215,2]
[311661696,1705291840204,-500.0,0.00028215,2]
[311661697,1705291840214,-500.0,0.00028215,2]
[311661698,1705291840223,-500.0,0.00028215,2]
[311661699,1705291840232,-500.0,0.00028215,2]
[311661700,1705291840241,-500.0,0.00028215,2]
[311661701,1705291840250,-500.0,0.00028215,2]
[311661702,1705291840259,-500.0,0.00028215,2]
[311661703,1705291840268,-500.0,0.00028215,2]
[311661704,1705291840277,-500.0,0.00028215,2]
[311661705,1705291840286,-630.0683856,0.00028215,2]
[311661706,1705291840295,-500.0,0.00028215,2]
[311661707,1705291840304,-500.0,0.00028215,2]
[311661708,1705291840313,-500.0,0.00028215,2]
[311661709,1705291840323,-500.0,0.00028215,2]
[311661710,1705291840332,-268.00251284,0.00028215,2]
[311661711,1705291840341,-500.0,0.00028215,2]
[311661712,1705291840350,-1031.97,0.00028215,2]
[311661713,1705291840359,-500.0,0.00028215,2]
[311661714,1705291840368,-500.0,0.00028219,2]
[311661715,1705291840377,-500.0,0.00028272,2]
[311661716,1705291840386,-500.0,0.00028272,2]
[311661717,1705291840395,-1650.07,0.00028272,2]
[311661718,1705291840405,-7612.5,0.00028272,2]
[311661719,1705291840414,-500.0,0.00028273,2]
[311661720,1705291840423,-2301.71,0.00028273,2]
[311661721,1705291840432,-500.0,0.00028273,2]
[311661722,1705291840441,-1253.25,0.00028273,2]
[311661723,1705291840450,-500.0,0.00028273,2]
[311661724,1705291840459,-500.0,0.00028273,2]
[311661725,1705291840468,-155.0,0.00028311,2]
[311661726,1705291840477,-4608.7,0.00028487,2]
[311661727,1705291840486,-1121.77,0.00028487,2]
[311661728,1705291840495,-500.0,0.00028488,2]
[311661729,1705291840505,-500.0,0.00028488,2]
[311661730,1705291840514,-500.0,0.00028488,2]
[311661731,1705291840523,-500.0,0.00028488,2]
[311661732,1705291840532,-500.0,0.00028488,2]
[311661733,1705291840542,-500.0,0.00028488,2]
[311661734,1705291840552,-500.0,0.00028488,2]
[311661735,1705291840561,-3494.03,0.00028488,2]
[311661736,1705291840570,-500.0,0.00028488,2]
[311661737,1705291840579,-500.0,0.00028488,2]
[311661738,1705291840588,-500.0,0.00028488,2]
[311661739,1705291840597,-507.14,0.00028488,2]
[311661740,1705291840607,-906.79,0.00028488,2]
[311661741,1705291840618,-500.0,0.00028488,2]
[311661742,1705291840627,-500.0,0.00028488,2]
[311661743,1705291840637,-500.0,0.00028488,2]
[311661744,1705291840646,-610.81,0.00028488,2]
[311661745,1705291840655,-500.0,0.00028489,2]
[311661746,1705291840664,-500.0,0.00028489,2]
[311661747,1705291840674,-500.0,0.00028489,2]
[311661748,1705291840683,-500.0,0.00028489,2]
[311661749,1705291840692,-371.67830078,0.00028489,2]
[311661750,1705291840701,-500.0,0.00028489,2]
[311661751,1705291840710,-500.0,0.00028489,2]
[311661753,1705291840720,-500.0,0.00028489,2]
[311661754,1705291840729,-500.0,0.00028489,2]
[311661755,1705291840738,-500.0,0.00028489,2]
[311661756,1705291840748,-500.0,0.00028489,2]
[311661757,1705291840757,-500.0,0.00028489,2]
[311661758,1705291840767,-500.0,0.00028489,2]
[311661759,1705291840777,-500.0,0.00028489,2]
[311661760,1705291840786,-505.2367575,0.00028489,2]
[311661761,1705291840796,-500.0,0.00028489,2]
[311661762,1705291840806,-500.0,0.00028489,2]
[311661763,1705291840816,-500.0,0.00028489,2]
[311661764,1705291840825,-1031.97,0.00028489,2]
[311661765,1705291840835,-500.0,0.00028489,2]
[311661766,1705291840846,-612.83873156,0.00028493,2]
[311661767,1705291840859,-500.0,0.00028546,2]
[311661768,1705291840868,-500.0,0.00028546,2]
[311661769,1705291840878,-1650.07,0.00028546,2]
[311661770,1705291840888,-7612.5,0.00028546,2]
[311661771,1705291840897,-500.0,0.00028547,2]
[311661772,1705291840907,-2301.71,0.00028547,2]
[311661773,1705291840916,-500.0,0.00028547,2]
[311661774,1705291840926,-1253.25,0.00028547,2]
[311661775,1705291840935,-500.0,0.00028547,2]
[311661776,1705291840945,-500.0,0.00028547,2]
[311661777,1705291840954,-500.0,0.0002858,2]
[311661778,1705291840964,-791.9250348,0.00028682,3]
[311661779,1705291840974,-817.81143721,0.00028682,3]
[311661780,1705291840983,-38034.77258069,0.00028682,3]
[311661781,1705291840992,-23415.83323108,0.00028682,3]
[311661782,1705291841002,-4181.27972854,0.00028749,2]
[311661783,1705291841011,-4608.7,0.00028761,2]
[311661784,1705291841021,-1121.77,0.00028761,2]
[311661785,1705291841031,-500.0,0.00028762,2]
[311661786,1705291841040,-500.0,0.00028762,2]
[311661787,1705291841049,-500.0,0.00028762,2]
[311661788,1705291841059,-500.0,0.00028762,2]
[311661789,1705291841068,-500.0,0.00028762,2]
[311661790,1705291841078,-500.0,0.00028762,2]
[311661791,1705291841088,-3494.03,0.00028762,2]
[311661792,1705291841097,-500.0,0.00028762,2]
[311661793,1705291841107,-500.0,0.00028762,2]
[311661794,1705291841116,-500.0,0.00028762,2]
[311661795,1705291841126,-500.0,0.00028762,2]
[311661796,1705291841135,-507.14,0.00028762,2]
[311661797,1705291841145,-906.79,0.00028762,2]
[311661798,1705291841155,-500.0,0.00028762,2]
[311661799,1705291841165,-500.0,0.00028762,2]
[311661800,1705291841174,-500.0,0.00028762,2]
[311661801,1705291841184,-610.81,0.00028762,2]
[311661802,1705291841194,-500.0,0.00028763,2]
[311661803,1705291841203,-500.0,0.00028763,2]
[311661804,1705291841213,-253.32192153,0.00028763,2]
[311661805,1705291841223,-500.0,0.00028763,2]
[311661806,1705291841233,-500.0,0.00028763,2]
[311661807,1705291841242,-500.0,0.00028763,2]
[311661808,1705291841252,-500.0,0.00028763,2]
[311661809,1705291841262,-500.0,0.00028763,2]
[311661810,1705291841271,-500.0,0.00028763,2]
[311661811,1705291841281,-500.0,0.00028763,2]
[311661812,1705291841291,-500.0,0.00028763,2]
[311661813,1705291841301,-500.0,0.00028763,2]
[311661814,1705291841310,-500.0,0.00028763,2]
[311661815,1705291841320,-500.0,0.00028763,2]
[311661816,1705291841330,-500.0,0.00028763,2]
[311661817,1705291841340,-1031.97,0.00028763,2]
[311661818,1705291841350,-500.0,0.00028763,2]
[311661819,1705291841360,-500.0,0.0002882,2]
[311661820,1705291841370,-499.92863546,0.0002882,2]
[311661821,1705291841380,-1650.07,0.0002882,2]
[311661822,1705291841389,-7612.5,0.0002882,2]
[311661823,1705291841399,-500.0,0.00028821,2]
[311661824,1705291841409,-2301.71,0.00028821,2]
[311661825,1705291841419,-500.0,0.00028821,2]
[311661826,1705291841429,-1253.25,0.00028821,2]
[311661827,1705291841438,-500.0,0.00028821,2]
[311661828,1705291841448,-500.0,0.00028821,2]
[311661829,1705291841459,-153.89069901,0.00028999,2]
[311661830,1705291841468,-155.02015262,0.00029,2]
[311661831,1705291841478,-150.0,0.00029,2]
[311661832,1705291841488,-2316.63489669,0.00029,2]
[311661833,1705291841498,-4608.7,0.00029035,2]
[311661834,1705291841507,-1121.77,0.00029035,2]
[311661835,1705291841517,-500.0,0.00029036,2]
[311661836,1705291841527,-350.86707901,0.00029036,2]
[311661837,1705291841537,-500.0,0.00029036,2]
[311661838,1705291841547,-500.0,0.00029036,2]
[311661839,1705291841557,-500.0,0.00029036,2]
[311661840,1705291841566,-3494.03,0.00029036,2]
[311661841,1705291841576,-500.0,0.00029036,2]
[311661842,1705291841585,-504.15428497,0.00029036,2]
[311661843,1705291841595,-500.0,0.00029036,2]
[311661844,1705291841604,-507.14,0.00029036,2]
[311661845,1705291841614,-906.79,0.00029036,2]
[311661846,1705291841624,-500.0,0.00029036,2]
[311661847,1705291841633,-500.0,0.00029036,2]
[311661848,1705291841643,-610.81,0.00029036,2]
[311661849,1705291841652,-500.0,0.00029037,2]
[311661850,1705291841662,-500.0,0.00029037,2]
[311661852,1705291841671,-500.0,0.00029037,2]
[311661853,1705291841681,-500.0,0.00029037,2]